[Event "45th GER-ch Rapid 2019"]
[Site "Neumarkt in der Oberpfalz"]
[Date "2019.09.21"]
[Round "1.2"]
[White "Buhmann, Rainer"]
[Black "Marcziter, Dmitrii"]
[Result "1/2-1/2"]
[ECO "D15"]
[WhiteElo "2574"]
[BlackElo "2234"]
[Annotator "ChessBase"]
[PlyCount "69"]
[EventDate "2019.09.21"]
[EventType "swiss"]
[EventCountry "GER"]
[SourceTitle "playchess.com"]
[Source "ChessBase"]
[SourceQuality "1"]
[TimeControl "900+10"]

1. d4 {[%emt 0:00:00]} d5 {[%emt 0:00:00]} 2. c4 {[%emt 0:00:00]} c6 {[%emt 0:00:00]} 3. Nf3 {[%emt 0:00:00]} Nf6 {[%emt 0:00:00]} 4. e3 {[%emt 0:00:00]} a6 {[%emt 0:00:03]} 5. Nc3 {[%emt 0:00:30]} b5 {[%emt 0:00:15]} 6. b3 {[%emt 0:00:07]} Bg4 {[%emt 0:00:08]} 7. a4 {[%emt 0:00:03]} bxc4 {[%emt 0:00:24]} 8. bxc4 {[%emt 0:00:03]} e6 {[%emt 0:00:50]} 9. Be2 {[%emt 0:01:17]} Bb4 {[%emt 0:00:23]} 10. Bd2 {[%emt 0:00:03]} Nbd7 {[%emt 0:00:19]} 11. O-O {[%emt 0:00:14]} O-O {[%emt 0:00:11]} 12. Nxd5 {[%emt 0:02:10]} Nxd5 {[%emt 0:00:11]} 13. cxd5 {[%emt 0:00:03]} Bxd2 {[%emt 0:00:12]} 14. dxc6 {[%emt 0:02:51]} Bxe3 {[%emt 0:00:48]} 15. fxe3 {[%emt 0:00:38]} Nf6 {[%emt 0:00:13]} 16. Ne5 {[%emt 0:00:23]} Bf5 {[%emt 0:00:22]} 17. Bf3 {[%emt 0:00:20]} Be4 {[%emt 0:00:19]} 18. Rc1 {[%emt 0:00:30]} Rc8 {[%emt 0:00:48]} 19. Qe2 {[%emt 0:01:26]} Qa5 {[%emt 0:00:51]} 20. Nd7 {[%emt 0:02:17]} Nxd7 {[%emt 0:00:37]} 21. Bxe4 {[%emt 0:01:12]} Nf6 {[%emt 0:00:13]} 22. Rxf6 {[%emt 0:01:05]} gxf6 {[%emt 0:00:11]} 23. Rc5 {[%emt 0:00:02]} Qb4 {[%emt 0:02:17]} 24. Qg4+ {[%emt 0:00:58]} Kh8 {[%emt 0:00:04]} 25. Qh4 {[%emt 0:00:04]} f5 {[%emt 0:00:25]} 26. Qf6+ {[%emt 0:02:13]} Kg8 {[%emt 0:00:01]} 27. Qg5+ {[%emt 0:00:02]} Kh8 {[%emt 0:00:01]} 28. Qf6+ {[%emt 0:00:03]} Kg8 {[%emt 0:00:01]} 29. h3 {[%emt 0:00:08]} Qe1+ {[%emt 0:00:26]} 30. Kh2 {[%emt 0:00:01]} Qxe3 {[%emt 0:00:06]} 31. Bf3 {[%emt 0:00:58]} Qf4+ {[%emt 0:00:28]} 32. g3 {[%emt 0:00:18]} Qxf3 {[%emt 0:00:33]} 33. Qg5+ {[%emt 0:00:01]} Kh8 {[%emt 0:00:00]} 34. Qf6+ Kg8 {[%emt 0:09:00]} 35. Qg5+ {[%emt 0:00:02]} 1/2-1/2

[Event "45th GER-ch Rapid 2019"]
[Site "Neumarkt in der Oberpfalz"]
[Date "2019.09.21"]
[Round "1.3"]
[White "Beesk, Kevin"]
[Black "Schulz, Karsten"]
[Result "0-1"]
[ECO "B07"]
[WhiteElo "1969"]
[BlackElo "2272"]
[Annotator "NA"]
[PlyCount "106"]
[EventDate "2019.09.21"]
[EventType "swiss"]
[EventCountry "GER"]
[SourceTitle "playchess.com"]
[Source "ChessBase"]
[SourceQuality "1"]
[TimeControl "900+10"]

1. e4 {[%emt 0:00:00]} g6 {[%emt 0:00:00]} 2. d4 {[%emt 0:00:00]} Bg7 {[%emt 0:00:00]} 3. Nc3 {[%emt 0:00:00]} d6 {[%emt 0:00:00]} 4. g3 {[%emt 0:00:03]} Nf6 {[%emt 0:00:00]} 5. Bg2 {[%emt 0:00:02]} O-O {[%emt 0:00:00]} 6. Nge2 {[%emt 0:00:19]} e5 {[%emt 0:00:03]} 7. O-O {[%emt 0:00:32]} Nc6 {[%emt 0:00:08]} 8. dxe5 {[%emt 0:00:31]} Nxe5 {[%emt 0:00:17]} 9. h3 {[%emt 0:01:28]} Bd7 {[%emt 0:00:24]} 10. f4 {[%emt 0:00:30]} Nc6 {[%emt 0:00:17]} 11. Be3 {[%emt 0:00:17]} Re8 {[%emt 0:00:04]} 12. Kh2 {[%emt 0:01:29]} a6 {[%emt 0:00:09]} 13. Qd2 {[%emt 0:01:06]} b5 {[%emt 0:15:48]} 14. a3 a5 {[%emt 0:00:00]} 15. e5 {[%emt 0:01:39]} dxe5 {[%emt 0:00:00]} 16. Nxb5 {[%emt 0:00:15]} Rb8 {[%emt 0:00:00]} 17. a4 {[%emt 0:01:14]} e4 {[%emt 0:00:00]} 18. c3 {[%emt 0:01:32]} Be6 {[%emt 0:00:00]} 19. Ned4 {[%emt 0:00:54]} Nxd4 {[%emt 0:00:00]} 20. Nxd4 {[%emt 0:00:28]} Bc4 {[%emt 0:01:10]} 21. Rfd1 Qd7 {[%emt 0:00:00]} 22. b3 {[%emt 0:00:33]} Ba6 {[%emt 0:00:00]} 23. b4 {[%emt 0:00:32]} Bd3 {[%emt 0:00:00]} 24. b5 {[%emt 0:01:23]} Nd5 {[%emt 0:00:00]} 25. Rac1 {[%emt 0:01:00]} Nxe3 {[%emt 0:00:00]} 26. Qxe3 {[%emt 0:00:02]} Bxd4 {[%emt 0:00:00]} 27. Qxd4 {[%emt 0:00:46]} Qxd4 {[%emt 0:00:00]} 28. cxd4 {[%emt 0:00:01]} Re7 {[%emt 0:00:00]} 29. Rc3 {[%emt 0:00:13]} Rd8 {[%emt 0:00:00]} 30. Rcxd3 {[%emt 0:00:02]} exd3 {[%emt 0:00:00]} 31. Rxd3 {[%emt 0:00:01]} Re2 {[%emt 0:00:00]} 32. d5 {[%emt 0:00:18]} Ra2 {[%emt 0:00:00]} 33. Rd4 {[%emt 0:00:07]} Re8 {[%emt 0:00:00]} 34. b6 {[%emt 0:00:28]} cxb6 {[%emt 0:00:00]} 35. d6 {[%emt 0:00:01]} Rd8 {[%emt 0:00:00]} 36. Kg1 {[%emt 0:00:09]} Re2 {[%emt 0:00:00]} 37. d7 {[%emt 0:00:13]} Rc2 {[%emt 0:00:00]} 38. Bf1 {[%emt 0:00:05]} Kf8 {[%emt 0:00:00]} 39. Bb5 {[%emt 0:00:01]} Ke7 {[%emt 0:00:00]} 40. Re4+ {[%emt 0:00:06]} Kd6 {[%emt 0:00:00]} 41. Rd4+ {[%emt 0:00:15]} Kc7 {[%emt 0:00:00]} 42. Rd3 {[%emt 0:00:36]} Rc5 {[%emt 0:00:00]} 43. Rb3 {[%emt 0:01:05]} Rxb5 44. Rxb5 {[%emt 0:00:01]} Rxd7 {[%emt 0:00:00]} 45. f5 {[%emt 0:00:01]} Rd4 {[%emt 0:00:00]} 46. fxg6 {[%emt 0:00:05]} hxg6 {[%emt 0:00:00]} 47. Re5 {[%emt 0:00:17]} Kd6 {[%emt 0:00:00]} 48. Rb5 {[%emt 0:00:03]} Kc6 {[%emt 0:00:00]} 49. Re5 {[%emt 0:00:23]} Rxa4 {[%emt 0:00:00]} 50. Re7 {[%emt 0:00:01]} Rd4 {[%emt 0:00:00]} 51. Rxf7 {[%emt 0:00:05]} a4 {[%emt 0:00:00]} 52. Rf6+ {[%emt 0:00:43]} Rd6 {[%emt 0:00:00]} 53. Rf1 {[%emt 0:00:33]} b5 {[%emt 0:00:00]} 0-1

[Event "45th GER-ch Rapid 2019"]
[Site "Neumarkt in der Oberpfalz"]
[Date "2019.09.21"]
[Round "1.4"]
[White "Paulsen, Dirk"]
[Black "Schilay, Lorenz"]
[Result "1-0"]
[ECO "D85"]
[WhiteElo "2309"]
[BlackElo "1871"]
[Annotator "NA"]
[PlyCount "45"]
[EventDate "2019.09.21"]
[EventType "swiss"]
[EventCountry "GER"]
[SourceTitle "playchess.com"]
[Source "ChessBase"]
[SourceQuality "1"]
[TimeControl "900+10"]

1. d4 {[%emt 0:00:00]} Nf6 {[%emt 0:00:00]} 2. c4 {[%emt 0:00:05]} g6 {[%emt 0:00:00]} 3. Nc3 {[%emt 0:00:05]} d5 {[%emt 0:00:00]} 4. cxd5 {[%emt 0:00:04]} Nxd5 {[%emt 0:00:00]} 5. Na4 {[%emt 0:00:04]} Nd7 {[%emt 0:00:43]} 6. Nf3 {[%emt 0:00:25]} Bg7 {[%emt 0:00:03]} 7. e4 {[%emt 0:00:12]} N5b6 {[%emt 0:00:07]} 8. Nc3 {[%emt 0:00:06]} O-O {[%emt 0:00:18]} 9. Bf4 {[%emt 0:00:29]} c5 {[%emt 0:00:29]} 10. d5 {[%emt 0:00:30]} Nf6 {[%emt 0:00:42]} 11. Qd2 {[%emt 0:02:00]} Bd7 {[%emt 0:01:15]} 12. e5 {[%emt 0:01:19]} Nh5 {[%emt 0:00:18]} 13. Bh6 {[%emt 0:00:04]} Bg4 {[%emt 0:01:05]} 14. Bxg7 {[%emt 0:00:28]} Nxg7 {[%emt 0:00:31]} 15. Ng5 {[%emt 0:00:27]} Rc8 {[%emt 0:01:32]} 16. h3 {[%emt 0:00:26]} Bd7 {[%emt 0:00:10]} 17. Nf3 {[%emt 0:03:21]} Na4 {[%emt 0:01:17]} 18. Ne4 {[%emt 0:01:00]} c4 {[%emt 0:01:54]} 19. d6 {[%emt 0:00:56]} Bc6 {[%emt 0:00:56]} 20. dxe7 {[%emt 0:00:08]} Qxe7 {[%emt 0:00:05]} 21. Nf6+ {[%emt 0:00:10]} Kh8 {[%emt 0:00:06]} 22. Qh6 {[%emt 0:00:06]} Qb4+ {[%emt 0:00:44]} 23. Nd2 {[%emt 0:00:02]} 1-0

[Event "45th GER-ch Rapid 2019"]
[Site "Neumarkt in der Oberpfalz"]
[Date "2019.09.21"]
[Round "2.3"]
[White "Parashchenko, Oleg"]
[Black "Beesk, Kevin"]
[Result "1/2-1/2"]
[ECO "B40"]
[WhiteElo "2136"]
[BlackElo "1969"]
[Annotator "NA"]
[PlyCount "102"]
[EventDate "2019.09.21"]
[EventType "swiss"]
[EventCountry "GER"]
[SourceTitle "playchess.com"]
[Source "ChessBase"]
[SourceQuality "1"]
[TimeControl "900+10"]

1. e4 {[%emt 0:00:00]} c5 {[%emt 0:00:00]} 2. Nf3 {[%emt 0:00:00]} e6 {[%emt 0:00:00]} 3. d4 {[%emt 0:00:00]} cxd4 {[%emt 0:00:00]} 4. Nxd4 {[%emt 0:00:00]} Nc6 {[%emt 0:00:00]} 5. Nxc6 {[%emt 0:00:10]} bxc6 {[%emt 0:00:00]} 6. Bd3 {[%emt 0:00:03]} Nf6 {[%emt 0:00:00]} 7. O-O {[%emt 0:00:09]} d5 {[%emt 0:00:14]} 8. Qe2 {[%emt 0:00:10]} Be7 {[%emt 0:00:29]} 9. c4 {[%emt 0:00:28]} O-O {[%emt 0:01:10]} 10. cxd5 {[%emt 0:00:18]} exd5 {[%emt 0:00:32]} 11. exd5 {[%emt 0:00:21]} cxd5 {[%emt 0:00:39]} 12. Re1 {[%emt 0:00:32]} Re8 {[%emt 0:00:43]} 13. Bg5 {[%emt 0:01:03]} Bb4 {[%emt 0:04:29]} 14. Qxe8+ {[%emt 0:01:12]} Nxe8 {[%emt 0:00:15]} 15. Bxd8 {[%emt 0:00:03]} Bxe1 {[%emt 0:00:02]} 16. Be7 {[%emt 0:01:30]} a5 {[%emt 0:01:23]} 17. Nc3 {[%emt 0:01:30]} Bxc3 {[%emt 0:00:41]} 18. bxc3 {[%emt 0:00:02]} Be6 {[%emt 0:00:23]} 19. Bc5 {[%emt 0:02:59]} Rc8 {[%emt 0:00:19]} 20. Bd4 {[%emt 0:00:01]} Nd6 {[%emt 0:00:12]} 21. Rb1 {[%emt 0:00:42]} Bf5 {[%emt 0:03:28]} 22. Bxf5 {[%emt 0:01:59]} Nxf5 {[%emt 0:00:01]} 23. Be5 {[%emt 0:00:01]} f6 {[%emt 0:00:09]} 24. Rb8 {[%emt 0:00:03]} Rxb8 {[%emt 0:00:23]} 25. Bxb8 {[%emt 0:00:04]} a4 {[%emt 0:00:19]} 26. Kf1 {[%emt 0:00:06]} Kf7 {[%emt 0:00:06]} 27. Ke2 {[%emt 0:00:30]} Ke6 {[%emt 0:00:04]} 28. Kd3 {[%emt 0:00:03]} Ne7 {[%emt 0:00:19]} 29. c4 {[%emt 0:00:56]} Kd7 {[%emt 0:00:25]} 30. cxd5 {[%emt 0:00:31]} Nxd5 {[%emt 0:00:01]} 31. Kc4 {[%emt 0:00:08]} Kc6 {[%emt 0:00:04]} 32. Ba7 {[%emt 0:00:24]} g6 {[%emt 0:00:55]} 33. g3 {[%emt 0:00:38]} f5 {[%emt 0:00:42]} 34. f4 {[%emt 0:00:17]} h6 {[%emt 0:00:36]} 35. Bd4 {[%emt 0:00:56]} g5 {[%emt 0:00:12]} 36. fxg5 hxg5 {[%emt 0:00:01]} 37. h4 {[%emt 0:00:23]} gxh4 {[%emt 0:00:45]} 38. gxh4 {[%emt 0:00:02]} f4 {[%emt 0:00:15]} 39. h5 {[%emt 0:00:14]} f3 {[%emt 0:00:14]} 40. h6 {[%emt 0:00:15]} Nf4 {[%emt 0:00:46]} 41. h7 {[%emt 0:00:05]} Ng6 {[%emt 0:00:00]} 42. Kb4 {[%emt 0:00:08]} Kd5 {[%emt 0:00:05]} 43. Bf2 {[%emt 0:00:02]} Ke6 {[%emt 0:00:17]} 44. Kxa4 {[%emt 0:00:10]} Kf7 {[%emt 0:00:02]} 45. Kb5 {[%emt 0:00:31]} Kg7 {[%emt 0:00:01]} 46. a4 {[%emt 0:00:01]} Ne7 {[%emt 0:00:26]} 47. a5 {[%emt 0:00:28]} Nd5 {[%emt 0:00:09]} 48. Kc5 {[%emt 0:00:10]} Nc7 {[%emt 0:00:08]} 49. Kd6 {[%emt 0:01:00]} Na6 {[%emt 0:00:12]} 50. Kc6 {[%emt 0:00:31]} Kxh7 {[%emt 0:00:17]} 51. Kb5 {[%emt 0:00:19]} Nc7+ {[%emt 0:00:01]} 1/2-1/2

[Event "45th GER-ch Rapid 2019"]
[Site "Neumarkt in der Oberpfalz"]
[Date "2019.09.21"]
[Round "2.4"]
[White "Schilay, Lorenz"]
[Black "Pogan, Nikolas"]
[Result "1-0"]
[ECO "B07"]
[WhiteElo "1871"]
[BlackElo "2251"]
[Annotator "NA"]
[PlyCount "37"]
[EventDate "2019.09.21"]
[EventType "swiss"]
[EventCountry "GER"]
[SourceTitle "playchess.com"]
[Source "ChessBase"]
[SourceQuality "1"]
[TimeControl "900+10"]

1. e4 {[%emt 0:00:00]} d6 {[%emt 0:00:00]} 2. d4 {[%emt 0:00:00]} Nf6 {[%emt 0:00:00]} 3. Nc3 {[%emt 0:00:00]} e5 {[%emt 0:00:00]} 4. dxe5 {[%emt 0:00:00]} dxe5 {[%emt 0:00:00]} 5. Qxd8+ {[%emt 0:00:01]} Kxd8 {[%emt 0:00:04]} 6. Bc4 {[%emt 0:00:02]} Ke8 {[%emt 0:00:01]} 7. Nf3 {[%emt 0:00:02]} Bd6 {[%emt 0:00:03]} 8. Bg5 {[%emt 0:00:42]} Nbd7 {[%emt 0:00:07]} 9. O-O-O {[%emt 0:00:06]} a6 {[%emt 0:00:02]} 10. a4 {[%emt 0:00:15]} b6 {[%emt 0:00:01]} 11. Rhe1 {[%emt 0:00:38]} Bb7 {[%emt 0:00:03]} 12. Nh4 {[%emt 0:00:22]} g6 {[%emt 0:00:38]} 13. f4 {[%emt 0:02:39]} h6 {[%emt 0:00:11]} 14. Bxf6 {[%emt 0:00:09]} Nxf6 {[%emt 0:00:11]} 15. Nf3 {[%emt 0:00:21]} Nd7 {[%emt 0:00:22]} 16. Nd5 {[%emt 0:01:21]} Rd8 {[%emt 0:01:09]} 17. Rd2 {[%emt 0:01:57]} Kf8 {[%emt 0:03:07]} 18. Red1 {[%emt 0:01:01]} Kg7 {[%emt 0:00:03]} 19. Nxc7 {[%emt 0:00:42]} 1-0

[Event "45th GER-ch Rapid 2019"]
[Site "Neumarkt in der Oberpfalz"]
[Date "2019.09.21"]
[Round "3.3"]
[White "Beesk, Kevin"]
[Black "Marcziter, Dmitrii"]
[Result "1/2-1/2"]
[ECO "B50"]
[WhiteElo "1969"]
[BlackElo "2234"]
[Annotator "NA"]
[PlyCount "153"]
[EventDate "2019.09.21"]
[EventType "swiss"]
[EventCountry "GER"]
[SourceTitle "playchess.com"]
[Source "ChessBase"]
[SourceQuality "1"]
[TimeControl "900+10"]

1. Nc3 {[%emt 0:00:00]} c5 {[%emt 0:00:00]} 2. Nf3 {[%emt 0:00:00]} Nf6 {[%emt 0:00:08]} 3. e4 {[%emt 0:00:00]} d6 {[%emt 0:00:06]} 4. e5 {[%emt 0:00:00]} dxe5 {[%emt 0:00:07]} 5. Nxe5 {[%emt 0:00:00]} a6 {[%emt 0:00:06]} 6. g3 {[%emt 0:01:11]} e6 {[%emt 0:00:23]} 7. Bg2 {[%emt 0:00:04]} Bd6 {[%emt 0:00:07]} 8. Nc4 {[%emt 0:01:05]} Be7 {[%emt 0:00:23]} 9. a4 {[%emt 0:00:42]} O-O {[%emt 0:00:23]} 10. a5 {[%emt 0:00:38]} Nbd7 {[%emt 0:00:08]} 11. O-O {[%emt 0:00:36]} Ra7 {[%emt 0:00:21]} 12. Re1 {[%emt 0:00:58]} b5 {[%emt 0:00:12]} 13. axb6 {[%emt 0:00:10]} Nxb6 {[%emt 0:00:04]} 14. Ne5 {[%emt 0:01:01]} Bd7 {[%emt 0:00:33]} 15. d4 {[%emt 0:01:10]} Nbd5 {[%emt 0:01:28]} 16. Nxd5 {[%emt 0:02:24]} exd5 {[%emt 0:00:42]} 17. Be3 {[%emt 0:01:17]} c4 {[%emt 0:00:36]} 18. b3 {[%emt 0:00:50]} Bb4 {[%emt 0:00:43]} 19. Bd2 {[%emt 0:00:16]} Bxd2 {[%emt 0:00:12]} 20. Qxd2 {[%emt 0:00:01]} cxb3 {[%emt 0:00:07]} 21. cxb3 {[%emt 0:01:00]} Bb5 {[%emt 0:00:07]} 22. Rac1 {[%emt 0:00:48]} Qd6 {[%emt 0:01:12]} 23. Rc5 {[%emt 0:00:34]} Rd8 {[%emt 0:00:22]} 24. Qc2 {[%emt 0:00:36]} Re7 {[%emt 0:01:11]} 25. Rc1 {[%emt 0:01:04]} h6 {[%emt 0:01:42]} 26. Rc8 {[%emt 0:00:45]} Rxc8 {[%emt 0:00:32]} 27. Qxc8+ {[%emt 0:00:01]} Re8 {[%emt 0:00:08]} 28. Qc5 {[%emt 0:00:42]} Qe6 {[%emt 0:00:26]} 29. h3 {[%emt 0:00:24]} Ne4 {[%emt 0:00:16]} 30. Qc2 {[%emt 0:00:28]} f6 {[%emt 0:00:34]} 31. Ng6 {[%emt 0:00:34]} Qb6 {[%emt 0:02:11]} 32. Qd1 {[%emt 0:00:23]} f5 {[%emt 0:00:58]} 33. Nf4 {[%emt 0:00:07]} Qd6 {[%emt 0:00:23]} 34. Qc2 {[%emt 0:00:08]} Qb4 {[%emt 0:00:52]} 35. Rd1 {[%emt 0:00:25]} Qd6 {[%emt 0:00:23]} 36. Kh2 {[%emt 0:00:09]} Kh7 {[%emt 0:00:04]} 37. f3 {[%emt 0:00:02]} g5 {[%emt 0:00:36]} 38. Nh5 {[%emt 0:00:07]} Kg6 {[%emt 0:00:26]} 39. fxe4 {[%emt 0:00:03]} Kxh5 {[%emt 0:00:02]} 40. Bf3+ {[%emt 0:00:15]} g4 {[%emt 0:00:10]} 41. e5 {[%emt 0:00:14]} Qe6 {[%emt 0:00:13]} 42. hxg4+ {[%emt 0:00:12]} fxg4 {[%emt 0:00:01]} 43. Be2 {[%emt 0:00:18]} Rc8 {[%emt 0:00:14]} 44. Qd2 {[%emt 0:00:05]} Qg6 {[%emt 0:00:23]} 45. Rh1 {[%emt 0:00:16]} Qg5 {[%emt 0:00:22]} 46. Kg2+ {[%emt 0:00:09]} Kg6 {[%emt 0:00:04]} 47. Qxg5+ {[%emt 0:00:22]} Kxg5 {[%emt 0:00:04]} 48. Bxb5 {[%emt 0:00:02]} Rc2+ {[%emt 0:00:06]} 49. Kg1 {[%emt 0:00:06]} axb5 {[%emt 0:00:01]} 50. Rh2 {[%emt 0:00:01]} Rc3 {[%emt 0:00:04]} 51. Re2 {[%emt 0:00:12]} Rxg3+ {[%emt 0:00:07]} 52. Kh2 {[%emt 0:00:09]} Rf3 {[%emt 0:00:37]} 53. e6 {[%emt 0:00:01]} Rf8 {[%emt 0:00:02]} 54. e7 {[%emt 0:00:06]} Re8 {[%emt 0:02:18]} 55. Re5+ Kf6 {[%emt 0:00:00]} 56. Rxd5 {[%emt 0:00:01]} Rxe7 {[%emt 0:00:00]} 57. Rxb5 {[%emt 0:00:10]} Re3 {[%emt 0:00:00]} 58. b4 {[%emt 0:00:27]} Kg6 {[%emt 0:00:00]} 59. Rb8 {[%emt 0:00:11]} Rd3 {[%emt 0:00:00]} 60. Rd8 {[%emt 0:00:15]} Kg5 {[%emt 0:00:00]} 61. b5 {[%emt 0:00:15]} Kh4 {[%emt 0:00:00]} 62. Rh8 {[%emt 0:00:29]} Rd2+ {[%emt 0:01:20]} 63. Kg1 h5 {[%emt 0:00:00]} 64. b6 {[%emt 0:00:04]} Rb2 {[%emt 0:00:00]} 65. Rh6 {[%emt 0:00:14]} Kg3 {[%emt 0:00:00]} 66. Kf1 {[%emt 0:00:01]} h4 {[%emt 0:00:00]} 67. d5 {[%emt 0:00:04]} h3 {[%emt 0:00:00]} 68. d6 {[%emt 0:00:03]} Rxb6 {[%emt 0:00:00]} 69. d7 {[%emt 0:00:01]} Rb8 {[%emt 0:00:00]} 70. Rd6 {[%emt 0:00:09]} Rd8 {[%emt 0:00:00]} 71. Rd3+ {[%emt 0:00:23]} Kf4 {[%emt 0:00:00]} 72. Kf2 {[%emt 0:00:23]} Ke4 {[%emt 0:00:00]} 73. Rd1 {[%emt 0:00:09]} Kf4 {[%emt 0:00:00]} 74. Rd3 {[%emt 0:00:02]} Ke5 {[%emt 0:00:58]} 75. Kg3 {[%emt 0:00:08]} Ke6 {[%emt 0:00:03]} 76. Kxg4 {[%emt 0:00:04]} h2 {[%emt 0:00:08]} 77. Rh3 {[%emt 0:00:17]} 1/2-1/2

[Event "45th GER-ch Rapid 2019"]
[Site "Neumarkt in der Oberpfalz"]
[Date "2019.09.21"]
[Round "3.4"]
[White "Rosner, Jonas"]
[Black "Schilay, Lorenz"]
[Result "1-0"]
[ECO "A49"]
[WhiteElo "2417"]
[BlackElo "1871"]
[Annotator "NA"]
[PlyCount "63"]
[EventDate "2019.09.21"]
[EventType "swiss"]
[EventCountry "GER"]
[SourceTitle "playchess.com"]
[Source "ChessBase"]
[SourceQuality "1"]
[TimeControl "900+10"]

1. d4 {[%emt 0:00:00]} Nf6 {[%emt 0:00:00]} 2. Nf3 {[%emt 0:00:00]} g6 {[%emt 0:00:00]} 3. g3 {[%emt 0:00:00]} Bg7 {[%emt 0:00:00]} 4. Bg2 {[%emt 0:00:00]} O-O {[%emt 0:00:00]} 5. O-O {[%emt 0:00:01]} d6 {[%emt 0:00:09]} 6. b3 {[%emt 0:00:02]} c5 {[%emt 0:00:18]} 7. Bb2 {[%emt 0:00:08]} Nc6 {[%emt 0:00:09]} 8. d5 {[%emt 0:00:14]} Nb8 {[%emt 0:00:18]} 9. c4 {[%emt 0:00:06]} a6 {[%emt 0:00:06]} 10. Nbd2 {[%emt 0:00:17]} b5 {[%emt 0:00:26]} 11. Qc2 {[%emt 0:00:05]} Nbd7 {[%emt 0:00:10]} 12. e4 {[%emt 0:00:07]} Qb6 {[%emt 0:00:26]} 13. Rfe1 {[%emt 0:00:11]} Ra7 {[%emt 0:00:59]} 14. e5 {[%emt 0:00:50]} Nxe5 {[%emt 0:00:20]} 15. Nxe5 {[%emt 0:00:02]} dxe5 {[%emt 0:00:06]} 16. Bxe5 {[%emt 0:00:11]} Bf5 {[%emt 0:00:44]} 17. Qc3 {[%emt 0:00:06]} Nh5 {[%emt 0:01:26]} 18. Bxg7 {[%emt 0:00:12]} Nxg7 {[%emt 0:00:01]} 19. Re2 {[%emt 0:00:52]} bxc4 {[%emt 0:02:10]} 20. Nxc4 {[%emt 0:00:23]} Qb4 {[%emt 0:00:25]} 21. Qxb4 {[%emt 0:00:41]} cxb4 {[%emt 0:00:01]} 22. Rae1 {[%emt 0:00:04]} e6 {[%emt 0:00:42]} 23. d6 {[%emt 0:00:15]} Bd3 {[%emt 0:03:12]} 24. Rd2 {[%emt 0:00:23]} Bxc4 {[%emt 0:00:01]} 25. bxc4 {[%emt 0:00:02]} Rc8 {[%emt 0:02:34]} 26. Rc1 {[%emt 0:00:04]} e5 {[%emt 0:00:36]} 27. c5 {[%emt 0:00:33]} Ne6 {[%emt 0:01:35]} 28. c6 {[%emt 0:00:12]} Kf8 {[%emt 0:00:38]} 29. Bd5 {[%emt 0:01:10]} Nd4 {[%emt 0:00:37]} 30. Kg2 {[%emt 0:12:49]} Nb5 {[%emt 0:01:51]} 31. Bb3 {[%emt 0:02:07]} Nd4 {[%emt 0:00:30]} 32. c7 {[%emt 0:00:31]} 1-0

[Event "45th GER-ch Rapid 2019"]
[Site "Neumarkt in der Oberpfalz"]
[Date "2019.09.21"]
[Round "4.2"]
[White "Langheinrich, Ferenc"]
[Black "Gschnitzer, Oswald"]
[Result "1-0"]
[ECO "E16"]
[WhiteElo "2382"]
[BlackElo "2357"]
[Annotator "NA"]
[PlyCount "45"]
[EventDate "2019.09.21"]
[EventType "swiss"]
[EventCountry "GER"]
[SourceTitle "playchess.com"]
[Source "ChessBase"]
[SourceQuality "1"]
[TimeControl "900+10"]

1. d4 {[%emt 0:00:00]} Nf6 {[%emt 0:00:00]} 2. c4 {[%emt 0:00:03]} e6 {[%emt 0:00:00]} 3. Nf3 {[%emt 0:15:27]} b6 4. g3 {[%emt 0:00:00]} Bb4+ {[%emt 0:00:24]} 5. Nbd2 {[%emt 0:00:00]} Bb7 {[%emt 0:00:24]} 6. Bg2 {[%emt 0:00:00]} O-O {[%emt 0:00:40]} 7. O-O {[%emt 0:00:00]} a5 {[%emt 0:00:57]} 8. Qc2 {[%emt 0:00:00]} d5 {[%emt 0:00:05]} 9. Ne5 {[%emt 0:00:00]} Nbd7 {[%emt 0:02:05]} 10. cxd5 {[%emt 0:00:00]} Nxe5 {[%emt 0:00:06]} 11. dxe5 {[%emt 0:00:00]} Nxd5 {[%emt 0:00:01]} 12. Ne4 {[%emt 0:00:00]} Be7 {[%emt 0:00:14]} 13. Bd2 {[%emt 0:00:00]} c5 {[%emt 0:00:32]} 14. Rfd1 {[%emt 0:00:00]} Qc7 {[%emt 0:00:01]} 15. Nd6 {[%emt 0:00:00]} Bxd6 {[%emt 0:03:18]} 16. exd6 {[%emt 0:00:00]} Qxd6 {[%emt 0:00:31]} 17. e4 {[%emt 0:00:00]} Ne7 {[%emt 0:00:05]} 18. Bf4 {[%emt 0:00:00]} Qc6 {[%emt 0:00:03]} 19. Rd6 {[%emt 0:00:00]} Qb5 {[%emt 0:01:12]} 20. Bf1 {[%emt 0:00:00]} Qb4 {[%emt 0:00:01]} 21. f3 {[%emt 0:00:00]} c4 {[%emt 0:00:30]} 22. Rd7 {[%emt 0:00:00]} Qc5+ {[%emt 0:04:02]} 23. Qf2 {[%emt 0:00:00]} 1-0